Cogmind - Beta 16 @@@ ROGUE MODE // 2025.11.23 @ 23:02:27 Player: unq Result: Self-destructed Performance ------------- Evolutions (7) 3500 Regions Visited (22) 4400 Robots Destroyed (192) 960 Value Destroyed (4939) 4939 Prototype IDs (42) 840 Alien Tech Used (0) 0 Bonus (650) 650 TOTAL SCORE: 15289 Bonus ------- Follower Combat Kills 465 Met Data Miner 300 Friendly Fire -115 Cogmind --------- Core Integrity 1075/1300 Matter 74/300 Energy 200/200 System Corruption 5% Temperature Cool (0) Movement Flying (103) Ox1 Location -3/Research Parts ------- > --- POWER (2) -------- Micro Fission Core Micro Antimatter Reactor > --- PROPULSION (8) --- Improved Flight Unit Nuclear Pulse Array Q-thruster Electron Diverter Impulse Thruster Array > --- UTILITY (8) ------ Improved Heat Sink Large Storage Unit Long-range Sensor Array Advanced Signal Interpreter Advanced Target Analyzer Core Analyzer Long-range Tractor Beam > --- WEAPON (3) ------- Compact Mass Driver Power Maul > --- INVENTORY (15) --- Micro Fission Core Light Particle Reactor VTOL Module Improved Cesium-ion Thruster Q-thruster Advanced Transmission Jammer ECM Suite Improved Cloaking Device Backup Plating III Graphene Brace Long-range Tractor Beam Improved Trap Extractor (0/6) RU-N14's Throwing Claymores (5) RU-N14's Throwing Claymores (3) Peak State ------------ > --- POWER ------------ Micro Fission Core Micro Antimatter Reactor > --- PROPULSION ------- Improved Flight Unit Cooled Nuclear Pulse Thruster Nuclear Pulse Array Q-thruster Electron Diverter Impulse Thruster Array > --- UTILITY ---------- Improved Heat Sink Large Storage Unit Advanced Signal Interpreter Advanced Target Analyzer Core Analyzer Advanced Transmission Jammer Improved Propulsion Shielding Long-range Tractor Beam > --- WEAPON ----------- Compact Mass Driver Mini Grenade Launcher Power Maul > --- INVENTORY -------- Light Nuclear Core Micro Fission Core Light Particle Reactor VTOL Module Improved Cesium-ion Thruster Q-thruster Long-range Sensor Array ECM Suite Improved Reaction Control System Improved Cloaking Device Backup Plating III Graphene Brace Improved Trap Extractor RU-N14's Throwing Claymores RU-N14's Throwing Claymores [Rating: 128] Favorites ----------- Power Micro Fission Core Engine Ion Engine Power Core Micro Fission Core Reactor Micro Antimatter Reactor Propulsion Light Treads Treads Light Treads Wheel Wheel Flight Unit Improved Flight Unit Utility Seismic Detector Device Seismic Detector Storage Huge Storage Unit Processor Improved Signal Interpreter Hackware Hacking Suite Protection Medium Armor Plating Weapon Improved Assault Rifle Energy Gun Medium Laser Energy Cannon Particle Cannon Ballistic Gun Improved Assault Rifle Ballistic Cannon Enhanced Gauss Cannon Launcher Mini Grenade Launcher Special Weapon Mining Laser Impact Weapon Power Maul Slashing Weapon Makeshift Sword Piercing Weapon Spear Build | -11 -10 -10 -9 -9 -9 -8 -8 -8 -7 -7 -7 -6 -6 -6 -6 -6 -5 -5 -4 -4 -4 -3 ------- Run | Yrd Mat Min Mat Min Exi Min Mat Sto Fac Low Dat Pro Fac Low Low Zio Pro Fac Fac Upp Upp Res Slots Evolved 14 | . . . 2 . . . 2 . 2 . . . 2 . . . . 2 2 . . 2 Power 1 | . . . . . . . . . . . . . 1 . . . . . . . . . Propulsion 6 | . . . 1 . . . 2 . . . . . 1 . . . . 1 1 . . . Utility 6 | . . . 1 . . . . . 2 . . . . . . . . 1 1 . . 1 Weapon 1 | . . . . . . . . . . . . . . . . . . . . . . 1 Parts Attached 210 | 7 8 11 30 . 1 6 16 16 16 4 . 1 20 1 7 8 2 22 24 1 . 9 Power 28 | 1 1 2 2 . . 1 2 3 4 . . . 2 . 1 . 1 4 2 . . 2 Engine 15 | 1 1 2 2 . . 1 . 2 1 . . . 2 . 1 . 1 1 . . . . Core 11 | . . . . . . . 2 1 3 . . . . . . . . 3 2 . . . Reactor 2 | . . . . . . . . . . . . . . . . . . . . . . 2 Propulsion 49 | 2 . 3 12 . . . 5 5 3 1 . . 4 . . . 1 4 5 . . 4 Treads 12 | 2 . . 10 . . . . . . . . . . . . . . . . . . . Leg . | . . . . . . . . . . . . . . . . . . . . . . . Wheel 4 | . . 3 1 . . . . . . . . . . . . . . . . . . . Hover . | . . . . . . . . . . . . . . . . . . . . . . . Flight 33 | . . . 1 . . . 5 5 3 1 . . 4 . . . 1 4 5 . . 4 Utility 85 | 2 4 2 8 . 1 3 5 2 8 1 . . 12 1 4 4 . 12 13 1 . 2 Device 37 | 1 3 . 3 . . 2 3 . 5 1 . . 3 1 1 . . 4 8 1 . 1 Storage 9 | 1 1 1 . . 1 . 2 . . . . . 1 . . . . 2 . . . . Processor 14 | . . . . . . . . . 1 . . . 3 . 1 3 . 4 2 . . . Hackware 12 | . . . . . . . . 1 1 . . . 4 . 1 1 . 2 2 . . . Protection 13 | . . 1 5 . . 1 . 1 1 . . . 1 . 1 . . . 1 . . 1 Artifact . | . . . . . . . . . . . . . . . . . . . . . . . Weapon 48 | 2 3 4 8 . . 2 4 6 1 2 . 1 2 . 2 4 . 2 4 . . 1 Energy Gun 12 | 1 . 3 3 . . . 1 3 . . . . . . . . . 1 . . . . Energy Cannon 6 | . 1 . 2 . . . 1 . . . . 1 1 . . . . . . . . . Ballistic Gun 12 | 1 . . 3 . . 1 . 2 1 . . . 1 . 1 2 . . . . . . Ballistic Cannon 4 | . . 1 . . . . . . . . . . . . . . . . 2 . . 1 Launcher 3 | . . . . . . 1 . 1 . 1 . . . . . . . . . . . . Special Weapon 5 | . 2 . . . . . 1 . . . . . . . . 1 . . 1 . . . Impact Weapon 1 | . . . . . . . . . . . . . . . . . . . 1 . . . Slashing Weapon 2 | . . . . . . . . . . 1 . . . . 1 . . . . . . . Piercing Weapon 3 | . . . . . . . 1 . . . . . . . . 1 . 1 . . . . Special Melee Weapon . | . . . . . . . . . . . . . . . . . . . . . . . Unidentified Prototypes 26 | . . . 4 . . . 1 7 2 . . . 2 . . 6 . 1 1 . . 2 Parts Lost 51 | . 2 7 1 . . 3 3 . 2 2 . 2 . . . 1 3 9 8 2 . 6 Power 9 | . 1 2 . . . 1 . . 1 . . . . . . . . 3 1 . . . Propulsion 17 | . . 3 1 . . 1 1 . 1 . . . . . . . 1 5 2 1 . 1 Utility 17 | . 1 1 . . . 1 1 . . 1 . 2 . . . 1 2 1 3 . . 3 Weapon 8 | . . 1 . . . . 1 . . 1 . . . . . . . . 2 1 . 2 Highest Loss Streak 4 | . 1 4 1 . . 3 2 . 1 2 . 1 . . . 1 2 3 4 1 . 3 To Critical Strikes . | . . . . . . . . . . . . . . . . . . . . . . . Average Backups 16 | 3 9 14 24 25 23 19 10 9 9 9 10 9 10 14 14 14 14 13 13 14 15 14 Power . | . . 1 1 1 1 . . . . 1 1 1 1 2 1 1 1 . . . 1 2 Propulsion 3 | . 1 3 7 8 7 6 1 2 2 3 3 3 2 2 2 2 1 1 . 2 3 2 Utility 6 | . 4 5 8 8 8 6 5 5 5 4 5 4 4 5 6 7 8 6 7 8 8 7 Weapon 4 | 1 3 4 6 7 6 5 3 1 1 . 1 1 2 4 3 3 4 4 4 3 3 2 Tool/Special . | . . . . . . . . . . . . . . . . . . . . . . . Unused Backups 43 | . 3 . 13 1 2 . 1 4 3 . . . . . 1 5 . 3 3 . . 4 Power 3 | . 1 . 1 . . . 1 . . . . . . . . . . . . . . . Propulsion 9 | . . . 5 . 1 . . 2 . . . . . . . . . . . . . 1 Utility 16 | . 1 . 2 . 1 . . 1 2 . . . . . . 3 . 2 2 . . 2 Weapon 11 | . 1 . 5 . . . . 1 . . . . . . 1 1 . 1 . . . 1 Tool/Special 4 | . . . . 1 . . . . 1 . . . . . . 1 . . 1 . . . Average Slot Usage (%) 93 | . 99 98 99 100 79 99 96 100 99 99 90 97 88 86 87 87 90 85 84 83 84 88 Engine 6 | . 13 13 11 11 11 10 1 . . . . . 5 6 6 6 6 2 . . . . Core 2 | . . . . . . . 7 8 7 7 7 7 . . . . . 5 9 10 10 5 Treads 14 | . 27 8 29 33 33 32 . . . . . . . . . . . . . . . . Wheel 1 | . . 18 3 . . . . . . . . . . . . . . . . . . . Flight 18 | . . . . . . . 43 45 38 38 38 38 37 40 40 40 40 33 28 26 26 27 Device 10 | . 13 13 10 11 11 10 12 4 14 13 7 10 2 6 5 5 5 5 12 15 15 15 Storage 8 | . 14 14 11 11 11 11 9 9 7 7 7 7 6 6 6 6 6 5 5 5 5 4 Processor 4 | . . . . . . . . . 5 7 7 7 6 6 8 13 13 12 10 15 15 14 Hackware 3 | . . . . . . . . 8 6 7 7 7 14 13 10 6 5 6 4 . . . Protection 4 | . . . 10 11 11 11 5 5 2 1 7 3 1 . . . . . 1 . . 2 Energy Gun 3 | . 13 23 3 . . 10 . . . . . . . . . . . . . . . . Ballistic Gun 6 | . 8 . 14 22 2 11 8 8 7 6 . . 3 . . . . . 1 . . . Piercing Weapon 2 | . . . . . . . 5 8 6 5 1 7 6 6 5 3 6 7 3 . . . Peak Build Rating 128 | 7 10 13 21 20 20 22 33 38 47 50 46 48 57 57 60 66 67 94 115 116 101 128 Average Rating 40 | 5 8 10 17 20 14 19 28 35 43 47 40 46 51 52 55 57 64 77 106 112 101 122 On Entrance 45 | . 7 8 10 20 20 19 20 29 37 46 46 46 42 52 52 60 66 55 91 114 101 101 Avg Prop Armor Cover (%) 2 | . . . . . . . . . . . . . . . . . . 3 2 . . 2 Naked Turns . | . . . . . . . . . . . . . . . . . . . . . . . Heaviest Build 103 | 14 21 92 103 101 101 57 55 25 25 28 22 26 32 32 35 35 37 40 53 54 38 52 Greatest Support 63 | 40 40 40 63 63 63 63 63 25 28 29 29 29 34 33 35 35 35 46 57 57 49 60 Greatest Overweight (x) 4 | . 1 4 3 1 1 . 1 . . . . . . . 1 . 1 1 . . . 1 Average Overweight (x) . | . . 2 1 1 . . . . . . . . . . . . . . . . . . Largest Inventory Capacity 25 | 8 10 25 25 25 25 20 20 10 10 10 10 10 15 15 15 15 15 15 15 15 15 15 Average Capacity 16 | 7 9 19 25 25 23 20 10 10 10 10 10 10 11 15 15 15 15 15 15 15 15 15 Most Carried 25 | 5 10 21 25 25 25 20 20 10 10 10 10 10 15 15 15 15 15 15 15 15 15 15 Average Carried 16 | 3 9 14 24 24 23 19 10 9 9 9 10 9 10 14 14 14 14 13 14 14 15 14 Final Capacity 25 | 8 10 25 25 25 20 20 10 10 10 10 10 10 15 15 15 15 15 15 15 15 15 15 Final Carried 25 | 5 10 21 25 25 20 20 10 10 10 10 10 9 15 15 15 15 15 15 15 15 15 14 Class Distribution -------------------- 28% | Scavenger-Mutant 27% | Sprinter 22% | Mutant 9% | Hacker-Sprinter 5% | Scout 4% | Scientist-Sprinter Dominant Class ---------------- Mutant | -10/Materials Scavenger-Mutant | -10/Mines Scavenger-Mutant | -9/Materials Mutant | -9/Mines Mutant | -9/Exiles Scavenger-Mutant | -8/Mines Sprinter | -8/Materials Sprinter | -8/Storage Scout | -7/Factory Scout | -7/Lower Caves Sprinter | -7/Data Miner Sprinter | -6/Proximity Caves Hacker-Sprinter | -6/Factory Hacker-Sprinter | -6/Lower Caves Hacker-Sprinter | -6/Lower Caves Derelict-Sprinter | -6/Zion Sprinter | -5/Proximity Caves Sprinter | -5/Factory Sprinter | -4/Factory Sprinter | -4/Upper Caves Scientist-Sprinter | -4/Upper Caves Sprinter | -3/Research Resources | -11 -10 -10 -9 -9 -9 -8 -8 -8 -7 -7 -7 -6 -6 -6 -6 -6 -5 -5 -4 -4 -4 -3 ----------- Run | Yrd Mat Min Mat Min Exi Min Mat Sto Fac Low Dat Pro Fac Low Low Zio Pro Fac Fac Upp Upp Res Matter Collected 6752 | 283 413 343 1220 30 . 361 443 367 326 207 . 65 345 60 250 93 187 576 742 293 . 148 Remotely 196 | . . . . . . . . . . . . . . . . . . . . 48 . 148 Salvage Created 8085 | 147 492 443 1922 29 . 305 386 224 162 . . . 422 . 1084 . 201 1122 811 244 . 91 Parts 395 | 14 33 19 122 4 . 14 23 14 15 . . . 30 . 10 . 9 44 28 12 . 4 Haulers Intercepted 13 | . 2 . 6 . . . . 1 . . . . . . . . . 2 2 . . . Recyclers Shooed 5 | . . 1 . . . . 2 . . . . . 1 . . . . 1 . . . . Parts Field Recycled . | . . . . . . . . . . . . . . . . . . . . . . . Retrieved Matter . | . . . . . . . . . . . . . . . . . . . . . . . Parts Self-Destructed 17 | . . . . . . . . . . . . . . . 1 . 8 . . 8 . . Prevented . | . . . . . . . . . . . . . . . . . . . . . . . Parts Restored . | . . . . . . . . . . . . . . . . . . . . . . . Kills | -11 -10 -10 -9 -9 -9 -8 -8 -8 -7 -7 -7 -6 -6 -6 -6 -6 -5 -5 -4 -4 -4 -3 ------- Run | Yrd Mat Min Mat Min Exi Min Mat Sto Fac Low Dat Pro Fac Low Low Zio Pro Fac Fac Upp Upp Res Combat Hostiles Destroyed 112 | . 12 7 33 . . 6 8 3 3 . . . 7 . . . 7 7 10 7 . 2 Melee 8 | . . . . . . . 1 . 1 . . . . . . . 1 5 . . . . Guns 62 | . 12 4 23 . . 3 5 3 1 . . . 7 . . . . 2 2 . . . Cannons 19 | . . 3 10 . . . 1 . . . . . . . . . . . 5 . . . AOE 21 | . . . . . . 3 . . 1 . . . . . . . 5 . 3 7 . 2 Classes Destroyed 16 | 2 5 2 1 . . 1 . . 2 . . . . . 1 . . 1 . 1 . . Worker 18 | . . 1 2 1 . 1 3 2 2 . . . . . . . . 3 2 . . 1 Builder 2 | . . . . . . . . . 1 . . . . . . . . . 1 . . . Tunneler 12 | 4 . 2 2 1 . 1 . . . . . . . . . . . . 1 . . 1 Hauler 13 | . 2 . 6 . . . . 1 . . . . . . . . . 2 2 . . . Recycler 15 | 1 . 2 3 . . 1 1 . . . . . 1 . . . . 4 2 . . . Minesweeper 2 | . . . . . . . . . . . . . . . 1 . 1 . . . . . Operator 7 | . 1 . 2 . . . . . . . . . 1 . . . . 1 . . . 2 Drone 1 | . . . . . . . . . . . . . . . . . . 1 . . . . Watcher 11 | . 2 . 4 . . . . . 2 . . . 2 . . . . 1 . . . . Swarmer 49 | . 6 2 11 . . 2 4 1 2 . . . 6 . . . 5 . 3 7 . . Grunt 32 | . 6 3 13 . . 3 4 . . . . . . . . . 1 . 1 . . 1 Brawler 1 | . . . 1 . . . . . . . . . . . . . . . . . . . Sentry 12 | . . 2 8 . . . . 2 . . . . . . . . . . . . . . Hunter 2 | . . . . . . 1 . . . . . . . . . . 1 . . . . . Programmer 15 | . . . . . . . . . 1 . . . 1 . . . . 6 6 . . 1 Packrat 2 | . . . . . . . . . . . . . . . 2 . . . . . . . Samaritan 1 | . . . . . . . . . . . . . . . . . . . . 1 . . Savage 1 | . . . . . . . . . . . . . . . 1 . . . . . . . Best Kill Streak 5 | 3 3 3 5 2 . 3 4 2 2 . . . 4 . 1 . 5 5 5 5 . 3 Combat Bots Only 5 | . 3 2 4 . . 3 4 2 1 . . . 4 . . . 5 2 5 5 . 1 Max Kills in Single Turn 3 | 1 1 1 2 2 . 2 1 1 1 . . . 1 . 1 . 3 1 2 3 . 2 Gunslinging 1 | . . . . . . 1 . . . . . . . . . . . . . . . . Exploded 3 | . . . . . . 2 . . 1 . . . . . . . 3 . 2 3 . 1 Melee 1 | . . . . . . . 1 . 1 . . . . . . . 1 1 . . . . Uniques/NPCs Destroyed . | . . . . . . . . . . . . . . . . . . . . . . . Combat | -11 -10 -10 -9 -9 -9 -8 -8 -8 -7 -7 -7 -6 -6 -6 -6 -6 -5 -5 -4 -4 -4 -3 -------- Run | Yrd Mat Min Mat Min Exi Min Mat Sto Fac Low Dat Pro Fac Low Low Zio Pro Fac Fac Upp Upp Res Hostile Shots Fired 1008 | . 71 61 173 . . 35 59 40 96 14 . 25 53 3 23 . 33 94 118 39 3 68 Missed 413 | . 22 12 54 . . 8 21 20 52 7 . 14 27 2 13 . 20 32 53 18 1 37 Hits 595 | . 49 49 119 . . 27 38 20 44 7 . 11 26 1 10 . 13 62 65 21 2 31 Projectile 595 | . 49 49 119 . . 27 38 20 44 7 . 11 26 1 10 . 13 62 65 21 2 31 AOE 3 | . . . . . . . . . . . . . . . . . . 2 1 . . . Critical Strikes 17 | . 1 3 2 . . . 1 . 1 1 . . . . . . . 4 3 1 . . Actively Blocked 2 | . . . . . . . . . . . . . . . . . . 1 1 . . . Part Disruptions 4 | . . . . . . . . . . . . . . . . . . 2 . 1 . 1 Damage Taken 9280 | . 495 601 1220 . . 462 471 250 666 160 . 179 364 15 . . 260 1417 1552 411 65 692 Core 2218 | . 67 163 186 . . 38 40 64 253 16 . 39 90 . . . 73 509 277 143 35 225 Absorbed by Shields . | . . . . . . . . . . . . . . . . . . . . . . . Redirected to Shielding 339 | . . 13 . . . . . 15 45 20 . 26 . . . . . 35 109 . . 76 Regen/Repaired (Parts) 129 | . . . 8 . . . . . 48 . . . 22 . . . . 51 . . . . Core Remaining (%) 59 | 100 . 8 . . . 44 . 81 . . . 56 . . . . 80 49 . . 60 . Volleys Fired 481 | 13 68 34 154 2 . 20 39 11 24 2 . 1 17 3 2 . 3 11 57 8 . 12 Largest 2 | 2 2 2 2 2 . 2 2 1 1 1 . 1 1 1 1 . 1 1 2 1 . 2 Hottest 150 | 70 150 130 133 46 . 78 100 25 25 36 . 30 90 90 33 . 30 33 102 55 . 85 Shots Fired 756 | 26 134 69 265 4 . 34 47 11 23 3 . 1 17 3 2 . 3 11 73 8 . 22 Gun 543 | 26 123 58 195 4 . 30 39 11 23 . . . 15 . 1 . . 9 9 . . . Cannon 140 | . 1 11 44 . . . 4 . . . . . 2 3 . . . . 62 2 . 11 Launcher 31 | . . . . . . 4 . . . 3 . 1 . . 1 . 3 2 . 6 . 11 Special 42 | . 10 . 26 . . . 4 . . . . . . . . . . . 2 . . . Kinetic 443 | 13 56 3 168 4 . 17 39 11 23 . . . 15 . 1 . . 9 71 2 . 11 Thermal 258 | 13 78 66 88 . . . 8 . . . . . 2 3 . . . . . . . . Explosive 31 | . . . . . . 4 . . . 1 . 1 . . 1 . 3 2 2 6 . 11 Electromagnetic 24 | . . . 9 . . 13 . . . 2 . . . . . . . . . . . . Robot Hit Streak 25 | 13 12 9 25 2 . 8 7 2 6 1 . . 3 . 3 . 1 3 8 . . 5 Robot Miss Streak 7 | 1 6 3 5 1 . 3 4 2 3 1 . . 4 . . . 2 1 4 6 . 7 Penetration Max 1 | . . . . . . . 1 . . . . . 1 . . . . . 1 . . . Secondary Targets 8 | . 2 . 5 . . 1 . . . . . . . . . . . . . . . . Max Gunslinging Chain 1 | . 1 . 1 . . 1 . . . . . . . . . . . . . . . . Shots Hit Robots 529 | 19 65 41 160 3 . 25 45 14 26 1 . . 15 . 18 . 3 41 36 3 . 14 Core Hits 265 | 8 31 17 67 3 . 18 14 6 9 2 . . 11 . 12 . 6 17 21 8 . 15 Critical Kills 6 | . . . . . . . 1 . . . . . . . 1 . . 2 2 . . . Critical Parts Destroyed 9 | . . . 1 . . . . . . . . . 1 . . . . . 7 . . . Critical Strikes 37 | 2 4 2 2 . . . 1 . . . . . 1 . 1 . . 9 15 . . . Burn 9 | 2 4 2 1 . . . . . . . . . . . . . . . . . . . Meltdown 1 | . . . . . . . 1 . . . . . . . . . . . . . . . Destroy 12 | . . . 1 . . . . . . . . . 1 . 1 . . 2 7 . . . Blast 6 | . . . . . . . . . . . . . . . . . . . 6 . . . Smash 2 | . . . . . . . . . . . . . . . . . . . 2 . . . Impale 7 | . . . . . . . . . . . . . . . . . . 7 . . . . Melee Attacks 359 | . . . . . . . 41 27 42 6 . 3 29 4 34 1 6 97 42 10 . 17 Impact 29 | . . . . . . . . . . . . . . . . . . . 2 10 . 17 Slashing 23 | . . . . . . . . . . . . . . . 18 . 5 . . . . . Piercing 307 | . . . . . . . 41 27 42 6 . 3 29 4 16 1 1 97 40 . . . Sneak Attacks 37 | . . . . . . . 4 4 3 . . . 2 . 3 . 1 13 4 1 . 2 Combat Hostiles 1 | . . . . . . . . . . . . . . . . . . 1 . . . . Follow-up Attacks 6 | . . . . . . . . . . . . . . . . . . 5 1 . . . Damage Inflicted 16235 | 193 672 717 2719 52 . 811 1201 525 772 121 . . 501 . 1276 . 513 2281 2127 711 . 1043 Guns 5121 | 193 672 570 2200 45 . 315 455 82 275 . . . 201 . 7 . . 44 62 . . . Cannons 2177 | . . 144 503 . . . 83 . . . . . 54 . . . . . 1243 . . 150 Explosions 2624 | . . . . . . 496 . . . 121 . . . . 49 . 391 148 332 427 . 660 Melee 6201 | . . . . . . . 663 443 497 . . . 246 . 1220 . 122 2089 404 284 . 233 Ramming 26 | . . 3 16 7 . . . . . . . . . . . . . . . . . . Kinetic 4806 | 69 258 57 1747 45 . 111 455 82 275 . . . 201 . 7 . . 44 1305 . . 150 Thermal 2186 | 124 414 657 784 . . 70 83 . . . . . 54 . . . . . . . . . Explosive 2433 | . . . . . . 426 . . . . . . . . 49 . 391 148 332 427 . 660 Electromagnetic 497 | . . . 172 . . 204 . . . 121 . . . . . . . . . . . . Impact 755 | . . . . . . . . . . . . . . . . . . . 238 284 . 233 Slashing 1177 | . . . . . . . . . . . . . . . 969 . 122 . 86 . . . Piercing 4355 | . . . . . . . 663 443 497 . . . 246 . 251 . . 2089 166 . . . Highest Corruption 12 | . 1 1 4 4 4 4 . . 3 1 1 1 . . . 3 . 12 10 11 11 5 Average Corruption 3 | . 1 1 2 4 4 4 . . 2 1 1 1 . . . 3 . 6 5 10 11 1 Corruption Purged 3 | . . . . . . . . . 3 . . . . . . . . . . . . . Corruption Blocked . | . . . . . . . . . . . . . . . . . . . . . . . Effects 176 | . 7 7 48 5 24 28 . . 1 1 . 1 . . . . . 23 17 12 2 . Message Errors 41 | . . 2 9 1 7 8 . . . . . 1 . . . . . 4 3 5 1 . Matter Fused 50 | . 2 1 12 1 8 9 . . . . . . . . . . . 6 6 4 1 . Heat Flow Errors 22 | . 1 2 9 2 2 4 . . . . . . . . . . . 1 1 . . . Energy Discharges 18 | . . . 6 1 2 3 . . . . . . . . . . . 5 1 . . . Parts Rejected 6 | . . . 3 . . . . . . . . . . . . . . 1 1 1 . . Parts Fused 1 | . . . . . . 1 . . . . . . . . . . . . . . . . Data Loss (minor) 10 | . 2 1 2 . 3 . . . . . . . . . . . . . 2 . . . Data Loss (major) 13 | . 1 . 3 . 1 1 . . . . . . . . . . . 5 1 1 . . Misfires 7 | . 1 1 2 . . 1 . . . 1 . . . . . . . . 1 . . . Alerts 5 | . . . 1 . 1 1 . . . . . . . . . . . 1 1 . . . Misdirections 1 | . . . . . . . . . . . . . . . . . . . . 1 . . Weapon Failures 2 | . . . 1 . . . . . 1 . . . . . . . . . . . . . Overload Shots . | . . . . . . . . . . . . . . . . . . . . . . . Overflow Damage 1832 | . . . . . . 5 108 53 45 11 . 19 41 . 318 . 31 501 314 242 . 144 Projectiles 76 | . . . . . . . . . . . . . . . . . . . 76 . . . Explosions 92 | . . . . . . 5 . . . 11 . 19 . . . . 31 . . 25 . 1 Melee 1664 | . . . . . . . 108 53 45 . . . 41 . 318 . . 501 238 217 . 143 Knockbacks 15 | . . . . . . . . . . . . . . . . . . . 9 2 . 4 Impact 3 | . . . . . . . . . . . . . . . . . . . . 2 . 1 Kinetic 11 | . . . . . . . . . . . . . . . . . . . 9 . . 2 Secondary 1 | . . . . . . . . . . . . . . . . . . . . . . 1 Self-Inflicted Damage 368 | . . . . . . 99 . . . 56 . 41 . . . . 34 27 . 57 . 54 Shots 16 | . . . . . . 6 . . . 2 . 1 . . . . 1 1 . 2 . 3 Rammed 3 | . . . 2 1 . . . . . . . . . . . . . . . . . . Targets Rammed 4 | . . 1 2 1 . . . . . . . . . . . . . . . . . . Kicked . | . . . . . . . . . . . . . . . . . . . . . . . Crushed 1 | . . 1 . . . . . . . . . . . . . . . . . . . . Highest Temperature 336 | 100 232 303 300 203 197 278 113 16 15 5 . 41 190 336 169 327 190 148 208 6 . 12 Average Temperature 59 | 35 47 112 69 102 96 92 13 3 5 5 . 12 46 158 44 101 58 29 40 3 . 7 Received Heat Transfer 1401 | . 171 225 291 . . 162 198 45 51 . . 60 33 . . . . 75 48 . 9 33 Effects 5 | . . 1 2 . . . . . . . . . . 1 . 1 . . . . . . Shutdowns 1 | . . . . . . . . . . . . . . . . 1 . . . . . . Energy Bleed 2 | . . . 1 . . . . . . . . . . 1 . . . . . . . . Interference 1 | . . . 1 . . . . . . . . . . . . . . . . . . . Matter Decay 1 | . . 1 . . . . . . . . . . . . . . . . . . . . Siege Activations . | . . . . . . . . . . . . . . . . . . . . . . . Martial Activations . | . . . . . . . . . . . . . . . . . . . . . . . Shielding Activations . | . . . . . . . . . . . . . . . . . . . . . . . Robots Disrupted . | . . . . . . . . . . . . . . . . . . . . . . . Combat Hostiles . | . . . . . . . . . . . . . . . . . . . . . . . Robots Corrupted 5 | . . . 1 . . . . . . . . . . . . . . . . 3 . 1 Combat Hostiles 2 | . . . . . . . . . . . . . . . . . . . . 2 . . Parts Fried 6 | . . . 2 . . . . . . . . . . . . . . . 1 1 . 2 Impact Corruptions 27 | . . . . . . . . . . . . . . . . . . . 5 16 . 6 Robots Melted 1 | . . . . . . . 1 . . . . . . . . . . . . . . . Combat Hostiles 1 | . . . . . . . 1 . . . . . . . . . . . . . . . Parts Melted 17 | 3 1 6 3 . . . 2 . 1 . . . 1 . . . . . . . . . Heat Transferred 5637 | 518 1517 1665 1665 . . 50 148 . . . . . 74 . . . . . . . . . Parts Sabotaged . | . . . . . . . . . . . . . . . . . . . . . . . Parts Stolen . | . . . . . . . . . . . . . . . . . . . . . . . Parts Stripped . | . . . . . . . . . . . . . . . . . . . . . . . Power Chain Reactions 2 | . . . . . . 2 . . . . . . . . . . . . . . . . Alert | -11 -10 -10 -9 -9 -9 -8 -8 -8 -7 -7 -7 -6 -6 -6 -6 -6 -5 -5 -4 -4 -4 -3 ------- Run | Yrd Mat Min Mat Min Exi Min Mat Sto Fac Low Dat Pro Fac Low Low Zio Pro Fac Fac Upp Upp Res Maximum Alert Level 1 | . . . 1 . . . . 1 1 . . . 1 . . . . 1 1 . . 1 Low Security (%) 82 | 100 100 100 85 100 . 100 100 76 98 . . . 97 . . . . 49 30 . . 37 Level 1 17 | . . . 14 . . . . 23 1 . . . 2 . . . . 50 69 . . 62 Level 2 . | . . . . . . . . . . . . . . . . . . . . . . . Level 3 . | . . . . . . . . . . . . . . . . . . . . . . . Level 4 . | . . . . . . . . . . . . . . . . . . . . . . . Level 5 . | . . . . . . . . . . . . . . . . . . . . . . . High Security . | . . . . . . . . . . . . . . . . . . . . . . . Max Security . | . . . . . . . . . . . . . . . . . . . . . . . Peak Influence 395 | 5 93 58 279 44 . 65 168 311 205 . . . 204 . . . . 322 364 . . 395 Initial 151 | . . 10 . 44 . . . 61 60 . . . 31 . . . . 58 151 . . 81 Average 105 | . 20 11 131 5 . 9 68 139 95 . . . 123 . . . . 178 216 . . 204 Influence Increases 7624 | 25 417 295 1102 10 . 191 450 782 744 135 . 150 686 . 95 . 180 765 893 170 . 534 Destroy 0b10 Robot/C 2620 | . 240 200 660 . . 120 160 280 180 . . . 140 . . . 140 120 200 140 . 40 Destroy 0b10 Robot/NC 415 | 25 25 25 95 10 . 15 20 15 30 . . . 20 . 5 . 5 60 40 5 . 20 Destroy Leader 620 | . 58 30 180 . . 30 20 92 56 . . . 34 . . . 20 36 34 10 . 20 Allied During Kill 211 | . . 10 . . . . . 180 21 . . . . . . . . . . . . . Trap Triggered on 0b10 30 | . . . . . . . . . . . . . . . . . . . . . . 30 Successful Hack 273 | . 10 . 36 . . . 50 24 60 . . . 54 . . . . 17 22 . . . Select Force Hacks 120 | . 60 . 30 . . . . . . . . . 30 . . . . . . . . . Disable Machine 420 | . . 15 45 . . . 45 45 30 . . . 45 . . . . 90 75 . . 30 Anti-Garrison Action 400 | . . . . . . . . . . . . . . . . . . . 200 . . 200 Destroy Structure 475 | . 9 . 26 . . 11 20 11 22 . . . 18 . . . . 112 142 . . 104 Partial Spotted 495 | . . . . . . . . 135 120 . . . 120 . . . . 60 45 . . 15 Lose Combat Pursuer 1545 | . 15 15 30 . . 15 135 . 225 135 . 150 225 . 90 . 15 270 135 15 . 75 Influence Decreases 7249 | 25 388 324 987 125 . 191 303 794 813 172 29 100 547 171 86 27 86 549 891 306 54 281 Entered New Map 812 | . . 19 . 71 . . . 86 75 25 29 . 19 71 4 27 . 36 159 116 34 41 Time Decay 4588 | 25 368 205 678 54 . 161 273 198 478 127 . 80 368 100 82 . 86 433 502 170 20 180 Lost Part 429 | . 20 40 9 . . 30 30 . 20 20 . 20 . . . . . 80 80 20 . 60 Lost Ally 370 | . . 60 . . . . . 210 90 . . . 10 . . . . . . . . . Purge Threat 1050 | . . . 300 . . . . 300 150 . . . 150 . . . . . 150 . . . Squads Dispatched 47 | . 3 . 6 . . . 1 2 8 . . 1 5 . . . . 8 10 . . 3 Investigation 19 | . 2 . 3 . . . 1 . 1 . . 1 2 . . . . 3 4 . . 2 Extermination 13 | . . . . . . . . . 4 . . . 2 . . . . 2 4 . . 1 Reinforcement 12 | . 1 . 3 . . . . 1 1 . . . 1 . . . . 3 2 . . . Assault 2 | . . . . . . . . . 2 . . . . . . . . . . . . . Garrison 1 | . . . . . . . . 1 . . . . . . . . . . . . . . Intercept . | . . . . . . . . . . . . . . . . . . . . . . . Searches Triggered . | . . . . . . . . . . . . . . . . . . . . . . . Data Miner Redirects 2 | . . . . . . . . . . . . . . . . . . 1 . . . 1 Construction Impeded 2 | . . . 1 . . . . . . . . . . . . . . . 1 . . . Haulers Reinforced 1 | . . . . . . . . . . . . . . . . . . . 1 . . . Active Scanning Responses . | . . . . . . . . . . . . . . . . . . . . . . . Cargo Convoy Interrupts . | . . . . . . . . . . . . . . . . . . . . . . . Stealth | -11 -10 -10 -9 -9 -9 -8 -8 -8 -7 -7 -7 -6 -6 -6 -6 -6 -5 -5 -4 -4 -4 -3 --------- Run | Yrd Mat Min Mat Min Exi Min Mat Sto Fac Low Dat Pro Fac Low Low Zio Pro Fac Fac Upp Upp Res Distress Signals 17 | . . . 7 . . . 2 3 1 . . . . . . . . 2 1 . . 1 Communications Jammed 3 | . . . . . . . . . . . . . . . . . . . 1 . . 2 Distress Signals 3 | . . . . . . . . . . . . . . . . . . . 1 . . 2 Times Spotted 380 | . 26 12 70 . . 8 30 33 38 7 . 20 32 4 3 . 10 35 25 9 1 17 Peak Tracking Total 11 | . 4 3 5 . . 4 8 9 9 5 . 10 6 6 5 . 7 11 6 6 1 4 Tactical Retreats 62 | . 1 1 2 . . 1 5 2 9 4 . 4 8 . 3 . 1 9 8 1 . 3 ECM-based Alert Blocks 23 | . . . . . . . . 4 1 . . 14 . . . . . 2 2 . . . Traps | -11 -10 -10 -9 -9 -9 -8 -8 -8 -7 -7 -7 -6 -6 -6 -6 -6 -5 -5 -4 -4 -4 -3 ------- Run | Yrd Mat Min Mat Min Exi Min Mat Sto Fac Low Dat Pro Fac Low Low Zio Pro Fac Fac Upp Upp Res Traps Triggered 8 | . 5 . 2 . . . . . . . . . . . . . . . 1 . . . Indirectly . | . . . . . . . . . . . . . . . . . . . . . . . Trap Hack Attempts . | . . . . . . . . . . . . . . . . . . . . . . . Triggered . | . . . . . . . . . . . . . . . . . . . . . . . Disarmed . | . . . . . . . . . . . . . . . . . . . . . . . Reprogrammed . | . . . . . . . . . . . . . . . . . . . . . . . Reused 8 | . . . . . . . . . . . . . . . 2 . 3 . . . . 3 Traps Extracted 3 | . . . . . . . . . . . . . . . 1 . 2 . . . . . Installed 23 | . . . . . . . . . . . . . . . 9 . 8 . . . . 6 Triggered 8 | . . . . . . . . . . . . . . . 2 . 3 . . . . 3 Most Traps Carried 6 | . . . . . . . . . . . . . . . 5 4 6 6 6 6 6 6 Machines | -11 -10 -10 -9 -9 -9 -8 -8 -8 -7 -7 -7 -6 -6 -6 -6 -6 -5 -5 -4 -4 -4 -3 ---------- Run | Yrd Mat Min Mat Min Exi Min Mat Sto Fac Low Dat Pro Fac Low Low Zio Pro Fac Fac Upp Upp Res Machines Disabled 29 | . . 1 3 . . . 3 3 2 . . 1 3 . . . . 6 5 . . 2 Max in Single Turn 2 | . . 1 1 . . . 1 1 1 . . 1 1 . . . . 2 1 . . 1 Garrison Access 11 | . . . . . . . 1 1 3 . . . 1 . . . . 2 2 . . 1 Machines Repaired . | . . . . . . . . . . . . . . . . . . . . . . . Machines Dismantled . | . . . . . . . . . . . . . . . . . . . . . . . Machines Sabotaged . | . . . . . . . . . . . . . . . . . . . . . . . Overloaded Fab Kills . | . . . . . . . . . . . . . . . . . . . . . . . Hacking | -11 -10 -10 -9 -9 -9 -8 -8 -8 -7 -7 -7 -6 -6 -6 -6 -6 -5 -5 -4 -4 -4 -3 --------- Run | Yrd Mat Min Mat Min Exi Min Mat Sto Fac Low Dat Pro Fac Low Low Zio Pro Fac Fac Upp Upp Res Machines Accessed 132 | . 8 . 15 . 1 . 10 12 19 1 4 1 22 . 1 . . 13 15 1 1 8 Terminals 69 | . 6 . 9 . . . 6 11 9 1 . 1 9 . . . . 6 6 . . 5 Fabricators 10 | . . . . . . . . . 1 . . . 4 . . . . 3 2 . . . Repair Stations 11 | . . . 2 . . . . . 4 . . . 2 . . . . 1 1 . . 1 Recycling Units 12 | . 2 . 2 . . . 1 . 2 . . . 3 . . . . . 2 . . . Scanalyzers 10 | . . . 2 . . . 2 . 1 . . . 2 . . . . 1 2 . . . Garrison Access 12 | . . . . . . . 1 1 2 . . . 2 . . . . 2 2 . . 2 Total Hacks 368 | . 23 . 57 . 5 . 23 34 55 1 31 3 51 . 1 . . 34 36 1 1 12 Successful 211 | . 11 . 29 . 5 . 9 19 32 1 31 3 28 . 1 . . 21 18 1 1 1 Failed 154 | . 12 . 27 . . . 14 15 23 . . . 23 . . . . 12 17 . . 11 Catastrophic 20 | . . . 2 . . . 3 1 2 . . . 1 . . . . 4 3 . . 4 Database Lockouts 3 | . . . 1 . . . . . . . . . . . . . . 1 1 . . . Manual 129 | . 17 . 17 . . . 6 13 15 . . . 22 . . . . 17 13 . . 9 Terminals 197 | . 20 . 36 . . . 16 33 25 1 . 3 24 . . . . 15 16 . . 8 Fabricators 28 | . . . . . . . . . 2 . . . 10 . . . . 8 8 . . . Repair Stations 24 | . . . 5 . . . . . 10 . . . 4 . . . . 3 1 . . 1 Recycling Units 22 | . 3 . 5 . . . 2 . 5 . . . 5 . . . . . 2 . . . Scanalyzers 41 | . . . 11 . . . 4 . 10 . . . 5 . . . . 6 5 . . . Garrison Access 17 | . . . . . . . 1 1 3 . . . 3 . . . . 2 4 . . 3 Terminal Hacks 97 | . 2 . 9 . 5 . 5 16 7 1 31 3 5 . 1 . . 5 5 1 1 . Record 20 | . . . . . 5 . . . . 1 11 3 . . . . . . . . . . Part Schematic 15 | . . . . . . . . . . . 13 . 1 . . . . . 1 . . . Robot Schematic 4 | . . . . . . . . . . . 4 . . . . . . . . . . . Robot Analysis 3 | . . . . . . . 1 2 . . . . . . . . . . . . . . Prototype ID Bank 6 | . . . 1 . . . . 1 1 . 3 . . . . . . . . . . . Open Door 5 | . . . . . . . . 2 . . . . . . 1 . . . . 1 1 . Open DSF 1 | . . . . . . . . . . . . . . . . . . . 1 . . . Branch Access Points 2 | . . . . . . . . . 1 . . . 1 . . . . . . . . . Emergency Access Points 2 | . 1 . . . . . . . . . . . . . . . . 1 . . . . Terminal Index 2 | . . . . . . . 1 1 . . . . . . . . . . . . . . Fabricator Index 2 | . . . . . . . . . . . . . 1 . . . . 1 . . . . Repair Station Index 1 | . . . . . . . . . 1 . . . . . . . . . . . . . Unreport Threat 7 | . . . 2 . . . . 2 1 . . . 1 . . . . . 1 . . . Locate Traps 13 | . 1 . 4 . . . 1 6 1 . . . . . . . . . . . . . Transport Status 1 | . . . 1 . . . . . . . . . . . . . . . . . . . Recall Investigation 3 | . . . . . . . 1 . 1 . . . . . . . . 1 . . . . Recall Extermination 3 | . . . . . . . . . 1 . . . 1 . . . . . 1 . . . Recall Reinforcements 1 | . . . . . . . . . . . . . . . . . . 1 . . . . Hauler Manifests 4 | . . . 1 . . . 1 1 . . . . . . . . . 1 . . . . Registered Prototypes 1 | . . . . . . . . 1 . . . . . . . . . . . . . . Zone Layout 1 | . . . . . . . . . . . . . . . . . . . 1 . . . Fabricator Hacks 13 | . . . . . . . . . 1 . . . 4 . . . . 3 5 . . . Load Schematic 9 | . . . . . . . . . . . . . 3 . . . . 3 3 . . . Build 4 | . . . . . . . . . 1 . . . 1 . . . . . 2 . . . Repair Station Hacks 16 | . . . 3 . . . . . 7 . . . 3 . . . . 3 . . . . Scan Component 11 | . . . 2 . . . . . 5 . . . 2 . . . . 2 . . . . Repair 5 | . . . 1 . . . . . 2 . . . 1 . . . . 1 . . . . Recycling Unit Hacks 9 | . . . 2 . . . 1 . 2 . . . 3 . . . . . 1 . . . Retrieve Components 9 | . . . 2 . . . 1 . 2 . . . 3 . . . . . 1 . . . Scanalyzer 28 | . . . 8 . . . . . 10 . . . 2 . . . . 5 3 . . . Insert Component 10 | . . . 4 . . . . . 3 . . . 1 . . . . 1 1 . . . Analyze 10 | . . . 3 . . . . . 6 . . . . . . . . 1 . . . . Retrieve Study 8 | . . . 1 . . . . . 1 . . . 1 . . . . 3 2 . . . Garrison Access Hacks 8 | . . . . . . . 1 1 2 . . . 1 . . . . 2 1 . . . Seal Access 8 | . . . . . . . 1 1 2 . . . 1 . . . . 2 1 . . . Unauthorized Hacks 40 | . 9 . 7 . . . 2 2 3 . . . 10 . . . . 3 3 . . 1 Terminals 29 | . 7 . 6 . . . 2 2 3 . . . 6 . . . . 2 1 . . . Track 2 | . . . . . . . . . . . . . 2 . . . . . . . . . Assimilate 4 | . . . . . . . . 1 1 . . . 2 . . . . . . . . . Botnet 12 | . 2 . . . . . 2 1 2 . . . 2 . . . . 2 1 . . . Skim 11 | . 5 . 6 . . . . . . . . . . . . . . . . . . . Fabricators 4 | . . . . . . . . . . . . . 2 . . . . 1 1 . . . Prioritize 1 | . . . . . . . . . . . . . 1 . . . . . . . . . Recompile 3 | . . . . . . . . . . . . . 1 . . . . 1 1 . . . Repair Stations . | . . . . . . . . . . . . . . . . . . . . . . . Recycling Units 5 | . 2 . 1 . . . . . . . . . 2 . . . . . . . . . Reject 1 | . . . . . . . . . . . . . 1 . . . . . . . . . Tunnel 4 | . 2 . 1 . . . . . . . . . 1 . . . . . . . . . Scanalyzers . | . . . . . . . . . . . . . . . . . . . . . . . Garrison Access 2 | . . . . . . . . . . . . . . . . . . . 1 . . 1 Jam 2 | . . . . . . . . . . . . . . . . . . . 1 . . 1 Data Cores Recovered . | . . . . . . . . . . . . . . . . . . . . . . . Used . | . . . . . . . . . . . . . . . . . . . . . . . Hacking Detections 104 | . 6 . 14 . . . 8 9 17 . . 1 18 . . . . 11 13 . . 7 Full Trace Events 10 | . . . 2 . . . 1 . 1 . . 1 . . . . . 2 2 . . 1 Feedback Events . | . . . . . . . . . . . . . . . . . . . . . . . Feedback Blocked . | . . . . . . . . . . . . . . . . . . . . . . . Robot Schematics Acquired 6 | . . . . . . . . . . . 4 . . . . 2 . . . . . . Robots Built 3 | . . . . . . . . . 3 . . . . . . . . . . . . . Authchips . | . . . . . . . . . . . . . . . . . . . . . . . Time 134 | . . . . . . . . . 134 . . . . . . . . . . . . . Total Robot Build Rating 12 | . . . . . . . . . 12 . . . . . . . . . . . . . Part Schematics Acquired 35 | . . . 3 . . . . . 3 . 13 . 1 . . 14 . . 1 . . . Parts Built 5 | . . . . . . . . . . . . . 2 . . . . . 3 . . . Authchips 3 | . . . . . . . . . . . . . 1 . . . . . 2 . . . Time 189 | . . . . . . . . . . . . . 117 . . . . . 72 . . . Total Part Build Rating 30 | . . . . . . . . . . . . . 14 . . . . . 16 . . . Part Studies Acquired 8 | . . . 1 . . . . . 1 . . . 1 . . . . 3 2 . . . Parts Repaired 5 | . . . 1 . . . . . 2 . . . 1 . . . . 1 . . . . Time 180 | . . . 26 . . . . . 62 . . . 22 . . . . 70 . . . . Parts Recycled . | . . . . . . . . . . . . . . . . . . . . . . . Recycled Matter . | . . . . . . . . . . . . . . . . . . . . . . . Retrieved Matter . | . . . . . . . . . . . . . . . . . . . . . . . Retrieved Components 26 | . . . 20 . . . 2 . 4 . . . . . . . . . . . . . Parts Scanalyzed 7 | . . . 3 . . . . . 3 . . . . . . . . 1 . . . . Part Schematics Acquired 6 | . . . 3 . . . . . 3 . . . . . . . . . . . . . Parts Damaged . | . . . . . . . . . . . . . . . . . . . . . . . Bothacking | -11 -10 -10 -9 -9 -9 -8 -8 -8 -7 -7 -7 -6 -6 -6 -6 -6 -5 -5 -4 -4 -4 -3 ------------ Run | Yrd Mat Min Mat Min Exi Min Mat Sto Fac Low Dat Pro Fac Low Low Zio Pro Fac Fac Upp Upp Res Used RIF Installer . | . . . . . . . . . . . . . . . . . . . . . . . Robots Hacked . | . . . . . . . . . . . . . . . . . . . . . . . Non-combat . | . . . . . . . . . . . . . . . . . . . . . . . Combat . | . . . . . . . . . . . . . . . . . . . . . . . Robot Hacks Applied . | . . . . . . . . . . . . . . . . . . . . . . . Relay Couplers Released . | . . . . . . . . . . . . . . . . . . . . . . . Fabnet Peak Effective % . | . . . . . . . . . . . . . . . . . . . . . . . Robots Rewired 2 | . . . . . . . . . 1 . . . . . 1 . . . . . . . Allies Hacked 1 | . . . . . . . . . 1 . . . . . . . . . . . . . Hacks Repelled . | . . . . . . . . . . . . . . . . . . . . . . . Allies | -11 -10 -10 -9 -9 -9 -8 -8 -8 -7 -7 -7 -6 -6 -6 -6 -6 -5 -5 -4 -4 -4 -3 -------- Run | Yrd Mat Min Mat Min Exi Min Mat Sto Fac Low Dat Pro Fac Low Low Zio Pro Fac Fac Upp Upp Res Total Allies 21 | . . 3 . . . . . 11 5 . . . 1 . 1 . . . . . . . Largest Group 10 | . . 3 . . . . . 10 3 . . . 1 . 1 . . . . . . . Highest-Rated Group 173 | . . 40 . . . . . 173 90 . . . 10 . 85 . . . . . . . Highest-Rated Ally 85 | . . 16 . . . . . 29 30 . . . 10 . 85 . . . . . . . Total Orders 8 | . . . . . . . . . 1 2 . 5 . . . . . . . . . . STAY 1 | . . . . . . . . . . . . 1 . . . . . . . . . . ROAM 1 | . . . . . . . . . 1 . . . . . . . . . . . . . EXPLORE 3 | . . . . . . . . . . 2 . 1 . . . . . . . . . . RETURN 3 | . . . . . . . . . . . . 3 . . . . . . . . . . Ally Attacks 119 | . . 17 . . . . . 76 26 . . . . . . . . . . . . . Total Damage 1859 | . . 158 . . . . . 1050 651 . . . . . . . . . . . . . Kills 21 | . . 3 . . . . . 11 7 . . . . . . . . . . . . . Allies Corrupted 1 | . . . . . . . . . 1 . . . . . . . . . . . . . Allies Melted . | . . . . . . . . . . . . . . . . . . . . . . . Intel | -11 -10 -10 -9 -9 -9 -8 -8 -8 -7 -7 -7 -6 -6 -6 -6 -6 -5 -5 -4 -4 -4 -3 ------- Run | Yrd Mat Min Mat Min Exi Min Mat Sto Fac Low Dat Pro Fac Low Low Zio Pro Fac Fac Upp Upp Res Active Infowar (turns) 15701 | 87 888 485 3699 416 1101 796 639 154 1233 420 29 275 659 203 522 355 619 1153 1351 343 . 274 Sensors 6373 | . . . . . . . . . 991 420 29 225 259 203 522 355 619 1139 1239 343 . 29 Terrain 2 | . . . 2 . . . . . . . . . . . . . . . . . . . Structural 1435 | . . . . . . . 223 28 1004 180 . . . . . . . . . . . . Seismic 8298 | 87 888 485 3697 416 1101 796 639 92 97 . . . . . . . . . . . . . Machine Analysis 395 | . . . . . . . . . . . . . 395 . . . . . . . . . Cloaking 27 | . . . . . . . . . . . . . . . . . . . 27 . . . Jamming 1704 | . . . . . . . . . . . . . 2 . . . . 120 1337 . . 245 ECM 271 | . . . . . . 24 . 62 19 . . 50 3 . . . . 75 38 . . . Robot Analysis Total 3 | . . . . . . . 1 2 . . . . . . . . . . . . . . Derelict Logs Recovered 10 | . . 1 . . . . . . . 1 . 3 . . 3 . 1 . . 1 . . Drone Launches 4 | . . . . . . . . . . 2 . 2 . . . . . . . . . . Drone Recoveries 3 | . . . . . . . . . . 1 . 2 . . . . . . . . . . Exploration | -11 -10 -10 -9 -9 -9 -8 -8 -8 -7 -7 -7 -6 -6 -6 -6 -6 -5 -5 -4 -4 -4 -3 ------------- Run | Yrd Mat Min Mat Min Exi Min Mat Sto Fac Low Dat Pro Fac Low Low Zio Pro Fac Fac Upp Upp Res Turns Passed 18679 | 242 1762 714 4214 416 1101 976 694 419 1233 420 29 351 853 203 594 391 663 1271 1355 352 48 378 Spaces Moved 23682 | 122 906 377 1524 170 519 535 798 795 2603 742 90 959 1907 799 1358 1331 1284 2619 2407 963 166 708 Core 4 | 4 . . . . . . . . . . . . . . . . . . . . . . Treads 3631 | 118 906 101 1280 170 519 535 2 . . . . . . . . . . . . . . . Legs . | . . . . . . . . . . . . . . . . . . . . . . . Wheels 520 | . . 276 244 . . . . . . . . . . . . . . . . . . . Hover . | . . . . . . . . . . . . . . . . . . . . . . . Flight 19527 | . . . . . . . 796 795 2603 742 90 959 1907 799 1358 1331 1284 2619 2407 963 166 708 Fastest Speed 20 | 50 160 90 116 240 160 160 28 26 25 25 28 28 22 22 20 20 21 21 25 26 26 20 Average Speed 53 | 156 160 138 220 240 210 160 28 26 25 25 28 28 24 22 21 20 21 23 26 26 26 26 Slowest Speed 240 | 160 240 160 240 240 240 160 160 28 26 28 28 28 28 22 95 21 92 91 29 26 26 103 Overloaded Moves 6 | . . . . . . . . . . . . . . . . . . . . . . 6 Propulsion Burnouts . | . . . . . . . . . . . . . . . . . . . . . . . Robots Hopped 62 | . . . . . . . 2 5 9 3 . 2 2 . 2 . . 29 6 . . 2 Potential Cave-ins . | . . . . . . . . . . . . . . . . . . . . . . . Cave-ins Triggered . | . . . . . . . . . . . . . . . . . . . . . . . Exploration Rate (%) 61 | 9 99 43 97 21 84 94 68 92 59 60 68 76 35 80 86 84 82 32 34 86 18 14 Regions Visited 22 Branch Regions 14 Pre-discovered Areas 14 | . 5 1 1 . 1 . . . . . 1 1 1 . 1 2 . . . . . . Known Exits Taken 19 | . 1 1 1 . . 1 1 1 1 1 1 1 1 1 1 1 1 1 1 1 1 . Unknown Exits Taken 3 | 1 . . . 1 1 . . . . . . . . . . . . . . . . . Scrap Searched 18 | . . 1 . 1 . 1 . . . 2 . 1 . 2 4 3 2 . . 1 . . Spaces Dug 225 | . 7 . 16 . . . 20 10 22 4 . 10 18 5 13 . 2 41 38 7 . 12 Terrain Destroyed 457 | . 9 . 26 . . 32 20 10 22 12 . 10 19 5 13 . 27 64 76 64 . 48 Melee 181 | . . . . . . . 16 10 22 4 . 2 18 4 13 . 2 41 30 7 . 12 Projectile 76 | . 9 . 26 . . . 4 . . . . . 1 1 . . . . 29 2 . 4 AOE 200 | . . . . . . 32 . . . 8 . 8 . . . . 25 23 17 55 . 32 Terrain Rammed . | . . . . . . . . . . . . . . . . . . . . . . . Walls Destroyed . | . . . . . . . . . . . . . . . . . . . . . . . Machines Disabled . | . . . . . . . . . . . . . . . . . . . . . . . Actions | -11 -10 -10 -9 -9 -9 -8 -8 -8 -7 -7 -7 -6 -6 -6 -6 -6 -5 -5 -4 -4 -4 -3 --------- Run | Yrd Mat Min Mat Min Exi Min Mat Sto Fac Low Dat Pro Fac Low Low Zio Pro Fac Fac Upp Upp Res Total 28244 | 146 1070 497 2070 174 533 619 1146 957 3075 956 93 1030 2235 817 1616 1444 1661 3091 2970 1032 170 842 Wait 2929 | . 54 51 249 . . 44 207 70 341 192 . 61 208 8 183 72 348 307 416 42 5 71 Move 23541 | 121 905 376 1523 169 518 534 793 784 2584 736 89 955 1902 798 1354 1330 1283 2562 2394 962 165 704 Hop 57 | . . . . . . . 2 5 9 2 . 1 2 . 1 . . 27 6 . . 2 Pick Up 155 | 5 11 15 32 1 3 4 4 7 10 2 . . 17 . 4 7 1 16 10 2 . 4 Fast Attach 113 | 7 11 3 9 . 2 1 6 11 10 3 2 . 12 . 3 10 . 9 9 1 . 4 Attach 99 | . 1 5 4 . . 3 12 3 5 2 . 2 8 1 2 3 3 26 10 2 . 7 Detach 71 | . . . 2 . . 1 7 3 3 . . 1 13 1 4 8 2 18 5 . . 3 Swap 227 | . 13 10 51 . 1 10 18 12 15 7 . 6 10 1 17 2 7 17 18 5 . 7 Drop 187 | . 7 2 44 1 9 2 17 24 17 4 2 . 17 1 4 11 . 12 8 . . 5 Fire 481 | 13 68 34 154 2 . 20 39 11 24 2 . 1 17 3 2 . 3 11 57 8 . 12 Melee 341 | . . . . . . . 41 27 42 6 . 3 29 4 32 1 6 86 37 10 . 17 Ram . | . . . . . . . . . . . . . . . . . . . . . . . Kick . | . . . . . . . . . . . . . . . . . . . . . . . Crush 4 | . . 1 2 1 . . . . . . . . . . . . . . . . . . Escape Stasis . | . . . . . . . . . . . . . . . . . . . . . . . Rewire 16 | . . . . . . . . . 15 . . . . . 1 . . . . . . . Trap 23 | . . . . . . . . . . . . . . . 9 . 8 . . . . 6 Miscellaneous . | . . . . . . . . . . . . . . . . . . . . . . . Route ------- -11/Scrapyard -10/Materials (discovered 5 exits: *Mat x3 / *Min / *Sub) -10/Mines (discovered 2 exits: *Mat x2) -9/Materials (discovered 4 exits: *Mat x3 / *Min) -9/Mines (discovered 2 exits: *Mat / *Exi) -9/Exiles (discovered 2 exits: [*Min x2]) -8/Mines (discovered 2 exits: *Mat x2) -8/Materials (discovered 3 exits: *Fac x2 / *Sto) -8/Storage (discovered 2 exits: *Fac / [*Rec]) -7/Factory (discovered 4 exits: *Fac x2 / *Low x2) -7/Lower Caves (discovered 2 exits: Low / *Dat) -7/Data Miner -6/Proximity Caves -6/Factory (discovered 2 exits: *Low x2) -6/Lower Caves -6/Lower Caves (discovered 2 exits: *Fac / *Zio) -6/Zion -5/Proximity Caves -5/Factory (discovered 5 exits: *Fac x3 / Upp x2) -4/Factory (discovered 2 exits: *Upp x2) -4/Upper Caves -4/Upper Caves -3/Research History --------- Turn | Location | Event 11 | -11/Scrapyard | Discovered new exit (range 16) 243 | -11/Scrapyard | Entered Materials 301 | -10/Materials | Build established: Mutant 378 | -10/Materials | Discovered new exit (range 6) 482 | -10/Materials | Discovered new exit (range 3) 517 | -10/Materials | Discovered new exit (range 15) 907 | -10/Materials | Discovered new exit (range 15) 1364 | -10/Materials | Discovered new exit (range 16) 1763 | -10/Materials | Learned location of 2 exits from Materials 1793 | -10/Materials | Identified exit to Subcaves 1793 | -10/Materials | Identified exit to Mines 1793 | -10/Materials | Identified exit to Materials 1811 | -10/Materials | Learned location of Mines (-8) 1854 | -10/Materials | Learned Storage emergency access door positions 2005 | -10/Materials | Entered Mines 2034 | -10/Mines | Assisted by bots powering up and referring to "LRC-V3" 2130 | -10/Mines | Lost 3 allies 2253 | -10/Mines | Learned location of Zion (-6) 2412 | -10/Mines | Build established: Scavenger-Mutant 2593 | -10/Mines | Core integrity fell below 50% 2614 | -10/Mines | Core integrity fell below 20% 2653 | -10/Mines | Lost 4 parts (1p1n1u1w) 2719 | -10/Mines | Entered Materials 2719 | -9/Materials | Evolved 2 slots: Propulsion x1, Utility x1 2720 | -9/Materials | Identified exit to Materials 2721 | -9/Materials | Identified exit to Mines 2804 | -9/Materials | Repaired Seismic Detector 4661 | -9/Materials | Central database locked down 5135 | -9/Materials | Learned location of 1 exit from Storage 5176 | -9/Materials | Learned location of 1 exit from Recycling 5205 | -9/Materials | Learned 4 Recycling zone layouts 5255 | -9/Materials | Learned Storage garrison access intel 5285 | -9/Materials | Loaded intel: 2 recycling unit locations 6893 | -9/Materials | Build established: Mutant 6933 | -9/Materials | Entered Mines 7170 | -9/Mines | Deemed a non-threat by the Exiles lab entrance 7173 | -9/Mines | Discovered new exit (range 5) 7275 | -9/Mines | Discovered exit to Materials (range 5) 7349 | -9/Mines | Entered Exiles 7407 | -9/Exiles | Met 8R-AWN 7425 | -9/Exiles | Discovered new exit (range 14) 7521 | -9/Exiles | Met EX-HEX 7663 | -9/Exiles | Met EX-DEC 7714 | -9/Exiles | Visited The Gauntlet 8057 | -9/Exiles | Discovered new exit (range 14) 8221 | -9/Exiles | Met EX-BIN 8450 | -9/Exiles | Entered Mines 8461 | -8/Mines | Core integrity fell below 50% 8499 | -8/Mines | Lost 3 parts (1p1n1u) 8731 | -8/Mines | Discovered exit to Materials (range 9) 8763 | -8/Mines | Discovered exit to Materials (range 5) 8896 | -8/Mines | Build established: Scavenger-Mutant 9426 | -8/Mines | Entered Materials 9426 | -8/Materials | Evolved 2 slots: Propulsion x2 9427 | -8/Materials | Identified exit to Storage 9428 | -8/Materials | Identified exit to Factory 9719 | -8/Materials | Build established: Sprinter 9935 | -8/Materials | Discovered exit to Factory (range 15) 10120 | -8/Materials | Entered Storage 10123 | -8/Storage | Loaded intel: 1 garrison access location 10249 | -8/Storage | Assisted by bots powering up and referring to "LRC-V3" 10269 | -8/Storage | Used back door to open Recycling access 10269 | -8/Storage | Discovered new exit (range 4) 10374 | -8/Storage | Garrison activated, responded to threat 10443 | -8/Storage | Lost 8 allies 10539 | -8/Storage | Entered Factory 10539 | -7/Factory | Evolved 2 slots: Utility x2 10692 | -7/Factory | Repaired Broken Seismic Detector 10878 | -7/Factory | Discovered new exit (range 16) 10882 | -7/Factory | Identified exit to Factory 10988 | -7/Factory | Discovered exit to Factory (range 11) 11068 | -7/Factory | Fabricated L-41 Fighter? 11087 | -7/Factory | Identified exit to Lower Caves 11304 | -7/Factory | Build established: Scout 11660 | -7/Factory | Repaired Spear 11772 | -7/Factory | Entered Lower Caves 12034 | -7/Lower Caves | Identified exit to Lower Caves 12162 | -7/Lower Caves | Found DCF Scrap (15 items) 12185 | -7/Lower Caves | A Derelict revealed a hidden shortcut to meet someone special 12187 | -7/Lower Caves | Identified exit to Data Miner 12192 | -7/Lower Caves | Entered Data Miner 12194 | -7/Data Miner | Discovered new exit (range 6) 12199 | -7/Data Miner | Met Data Miner 12204 | -7/Data Miner | Learned location of Section 7 (-2) 12204 | -7/Data Miner | Acquired the access code to Warlord's prototype stash 12209 | -7/Data Miner | Received God Mode back door access code from Data Miner 12221 | -7/Data Miner | Identified exit to Proximity Caves 12221 | -7/Data Miner | Entered Proximity Caves 12225 | -6/Proximity Caves | Learned Factory garrison access intel 12445 | -6/Proximity Caves | Build established: Sprinter 12498 | -6/Proximity Caves | Attracted the attention of an 0b10 checkpoint 12532 | -6/Proximity Caves | Learned 4 Factory zone layouts 12569 | -6/Proximity Caves | Discovered exit to Factory (range 6) 12572 | -6/Proximity Caves | Entered Factory 12572 | -6/Factory | Evolved 2 slots: Power x1, Propulsion x1 12573 | -6/Factory | Identified exit to Lower Caves 12574 | -6/Factory | Loaded intel: 4 garrison access locations 12728 | -6/Factory | Repaired Mic. Nuclear Core 12869 | -6/Factory | Build established: Hacker-Sprinter 13288 | -6/Factory | Fabricated Adv. Transmission Jammer (x2) 13425 | -6/Factory | Entered Lower Caves 13437 | -6/Lower Caves | Entered a destroyed Warlord outpost 13507 | -6/Lower Caves | Encountered a Warlord checkpoint 13621 | -6/Lower Caves | Discovered new exit (range 13) 13624 | -6/Lower Caves | Identified exit to Lower Caves 13628 | -6/Lower Caves | Entered another Lower Caves area 13639 | -6/Lower Caves | Learned location of 1 exit from Factory 13646 | -6/Lower Caves | Discovered new exit (range 15) 13649 | -6/Lower Caves | Identified exit to Factory 13706 | -6/Lower Caves | Spotted B-75 Beast 13738 | -6/Lower Caves | Learned Factory trap positions 13877 | -6/Lower Caves | Rewired B-75 Beast 14084 | -6/Lower Caves | Encountered a Warlord checkpoint 14166 | -6/Lower Caves | Discovered new exit (range 9) 14168 | -6/Lower Caves | Identified exit to Zion 14200 | -6/Lower Caves | Learned location of Extension (-4) 14222 | -6/Lower Caves | Entered Zion 14234 | -6/Zion | Discovered new exit (range 15) 14237 | -6/Zion | Identified exit to Proximity Caves 14358 | -6/Zion | Build established: Derelict-Sprinter 14372 | -6/Zion | Found Prototype Special Weapon 14372 | -6/Zion | Identified RU-N14's Throwing Claymores 14392 | -6/Zion | Received a visual enhancement algorithm 14421 | -6/Zion | Found CR-A16's Pointy Stick 14527 | -6/Zion | Found Prototype Hackware 14527 | -6/Zion | Identified Exp. System Shield 14530 | -6/Zion | Found Prototype Processor 14530 | -6/Zion | Identified Exp. Terrain Scan Processor 14532 | -6/Zion | Found Prototype Processor 14532 | -6/Zion | Identified Exp. Melee Analysis Suite 14535 | -6/Zion | Found Prototype Processor 14535 | -6/Zion | Identified Exp. Target Analyzer 14539 | -6/Zion | Found Prototype Processor 14539 | -6/Zion | Identified Spectral Analyzer 14541 | -6/Zion | Found Exp. Melee Analysis Suite 14569 | -6/Zion | Found RU-N14's Throwing Claymores 14570 | -6/Zion | Found RU-N14's Throwing Claymores 14584 | -6/Zion | System corruption cleaned by Quarantine Array 14613 | -6/Zion | Entered Proximity Caves 14642 | -5/Proximity Caves | Spotted B-75 Beast 14653 | -5/Proximity Caves | Learned location of 1 exit from Factory 14715 | -5/Proximity Caves | Build established: Sprinter 15271 | -5/Proximity Caves | Discovered exit to Factory (range 10) 15276 | -5/Proximity Caves | Entered Factory 15276 | -5/Factory | Evolved 2 slots: Propulsion x1, Utility x1 15277 | -5/Factory | Identified exit to Upper Caves 15278 | -5/Factory | Identified exit to Factory 15279 | -5/Factory | Loaded intel: 110 trap records 15309 | -5/Factory | Discovered exit to Factory (range 5) 15570 | -5/Factory | Incoming investigation squad redirected 15574 | -5/Factory | Build established: Hacker-Sprinter 15886 | -5/Factory | Build established: Sprinter 16137 | -5/Factory | Repaired Imp. Cesium-ion Thruster 16276 | -5/Factory | System corruption reached 10% 16300 | -5/Factory | Core integrity fell below 50% 16317 | -5/Factory | Lost 3 parts (1p2n) 16525 | -5/Factory | Central database locked down 16547 | -5/Factory | Entered another Factory area 16547 | -4/Factory | Evolved 2 slots: Propulsion x1, Utility x1 16553 | -4/Factory | Identified exit to DSF 16887 | -4/Factory | Central database locked down 17276 | -4/Factory | Lost 4 parts (2n1u1w) 17406 | -4/Factory | Fabricated Imp. Flight Unit (x1) 17448 | -4/Factory | Fabricated Lrn. Sensor Array (x2) 17517 | -4/Factory | Build established: Scientist-Sprinter 17858 | -4/Factory | System corruption reached 10% 17888 | -4/Factory | Lost 3 parts (1p2u) 17891 | -4/Factory | Discovered new exit (range 5) 17892 | -4/Factory | Identified exit to Upper Caves 17899 | -4/Factory | Discovered exit to Upper Caves (range 4) 17902 | -4/Factory | Entered Upper Caves 18031 | -4/Upper Caves | Attracted the attention of an 0b10 checkpoint 18035 | -4/Upper Caves | Identified exit to Upper Caves 18074 | -4/Upper Caves | Build established: Sprinter 18254 | -4/Upper Caves | Entered another Upper Caves area 18294 | -4/Upper Caves | Discovered new exit (range 12) 18295 | -4/Upper Caves | Spotted B-86 Titan 18297 | -4/Upper Caves | Identified exit to Research 18302 | -4/Upper Caves | Entered Research 18302 | -3/Research | Evolved 2 slots: Utility x1, Weapon x1 18469 | -3/Research | Incoming investigation squad redirected 18680 | -3/Research | Self-destructed Last Messages --------------- 18610_ O-24 Administrator destroyed. 18611_ Acquired 19 matter. 18611_ ALERT: All DSF locations entering lockdown mode. 18613_ Slug penetrates G-67 Veteran. 18613_ G-67 Veteran knocked back. 18616_ K-01 Serf destroyed. 18616_ G-67 Veteran destroyed. 18617_ Acquired 33 matter. 18617_ Imp. Reaction Control System destroyed. 18622_ K-01 Serf collects debris. 18631_ Imp. Trap Extractor dropped Dirty Bomb Trap. 18631_ Installed Dirty Bomb Trap. 18644_ K-01 Serf destroyed. 18644_ Particle Synthesizer disabled. 18645_ Acquired 7 matter. 18645_ P-80 Master resets M-28 Smith, system corruption cleaned. 18668_ Imp. Propulsion Shielding destroyed. 18670_ Slug penetrates Quantum Generator. 18671_ Cld. Nuclear Pulse Thruster destroyed. 18674_ Mni. Grenade Launcher+ destroyed. Map ----- +----------------------------------------------------+ | ?????????????????????# #???????????????? | | ?????????????????????# #???????????????? | | ?????????????????????+ #???????????????? | | ?????????????????????# #### ###???????????????? | | ?????????????????????# ???# #?????????????????? | | ?????????????????????# #??# #?????????????????? | | ?????????????????????# #??# #?????????????????? | | ?????????????????????# #??# #?????????????????? | | ?????????????????????# ####+#########?????????? | | ?????????????????????+ g# g #?????????? | | ?????????????????????# # #?????????? | | ?????????????????????# # """ """ #?????????? | | ?????????????????????# # """ """ #?????????? | | ?????????????????????# """ """ #?????????? | | ?????????????????????# p """ """* #?????????? | | ????????############## p """ """ #?????????? | | ????????# # """m """ #?????????? | | ????????# # """ """ #?????????? | | ????????# """ # #?????????? | | ????????# ""T"" # #?????????? | | ????????# "" "" # p# ! #?????????? | | ????????# + ### ###########?????? | | ????????# # #???#### #?????? | | ????????# # #??????# ! =#?????? | | ????????# = # #??????# #?????? | | ????????#! # @#??????# #??###? | | ????????# ] # ############+######## ## | | ????????# # | | #####???############## | | #???# # #### #???# t | | #????# ##???# u ^"" | | #????# #????###############"T##### "" | | ###### #????########?###??#""#???# ^"T | | + + #????# ### ########### " | | #### # #????# # "" | | #??# # #????# # | | #??# ########????# # | | #??# #???????????# + | | #####??# #?########### # #### # | | ?###???# #?# # ! # #??#### | | ## ##### #?# ######## ##???# | | # #?# # #???## | | # #?# """ # ##???# =* | | ""# #?# """ # #????## "" # | | T"# ### """ + #?????# "R"" # | | ""# + # ##########???# """ # | | # # # # !!! #???# # | | # ########### # !!! #???# # | | """ # # !!! #???########### | | """ + # #?????????????? | +----------------------------------------------------+ Best States ------------- Heat Dissipation 74 Energy Generation 34 Energy Capacity 280 Matter Stores 300 Matter Capacity 300 Sight Range 16 Robot Scan Range 18 Terrain Scan Density 10 ECM Strength 1 Jamming Range 16 Cloak Strength 3 Armor Coverage 300 Power Shielding 33 Propulsion Shielding 66 Phase Shifting 10 Evasion (%) 75 Melee Accuracy 12 Target Analysis 8 Core Analysis 6 Recoil Reduction 3 Offensive Hacking 30 Defensive Hacking 16 Authchip Count 2 Trap Extractor Capacity 6 Item Schematics ----------------- Hacking Suite | -9/Materials | Scanalyzed Med. Storage Unit | -9/Materials | Scanalyzed Arm. Wheel | -9/Materials | Scanalyzed Imp. Flight Unit | -7/Factory | Scanalyzed Mic. Nuclear Core | -7/Factory | Scanalyzed Xenon Bombardment Thruster | -7/Factory | Scanalyzed Combat Drone Bay | -7/Data Miner | Free Lgt. Regenerative Plating | -7/Data Miner | Free Biomechanical Wings | -7/Data Miner | Free Exp. Targeting Computer | -7/Data Miner | Free Ion Burst Cannon | -7/Data Miner | Free Gyrokinetic Inverter | -7/Data Miner | Free Adv. System Shield | -7/Data Miner | Free Imp. Arc Projector | -7/Data Miner | Free Hvy. Plasma Cannon | -7/Data Miner | Free Adv. Shield Generator | -7/Data Miner | Free Tesla Rifle | -7/Data Miner | Free Adv. Transmission Jammer | -7/Data Miner | Free Hardcell Cannon | -7/Data Miner | Free Seismic Detector | -6/Factory | Hacked Angular Momentum Engine | -6/Zion | Archive Dispersion Rifle | -6/Zion | Archive Imp. Remote Shield | -6/Zion | Archive Adv. Signal Interpreter | -6/Zion | Archive Antigrav System | -6/Zion | Archive Imp. Reaction Control System | -6/Zion | Archive Phase Cannon | -6/Zion | Archive Imp. Weapon Cycler | -6/Zion | Archive Lgt. Angular Momentum Engine | -6/Zion | Archive Energy Well | -6/Zion | Archive Imp. Recalibrator | -6/Zion | Archive Imp. Thermal Shield | -6/Zion | Archive Power Amplifier | -6/Zion | Archive Imp. KE Penetrator | -6/Zion | Archive Lrn. Sensor Array | -4/Factory | Hacked Robot Schematics ------------------ H-55 Commando | -7/Data Miner | Free M-14 Sweeper | -7/Data Miner | Free S-27 Virus | -7/Data Miner | Free G-50 Soldier | -7/Data Miner | Free R-06 Scavenger | -6/Zion | Archive K-01 Serf | -6/Zion | Archive Fabricated ------------ L-41 Fighter | x3 | -7/Factory | Preloaded Adv. Transmission Jammer | x2 | -6/Factory | Authchip Imp. Flight Unit | x1 | -4/Factory | Authchip Lrn. Sensor Array | x2 | -4/Factory | Authchip Repaired ---------- Seismic Detector | 60% | -9/Materials Seismic Detector | 15% | -7/Factory | Broken Spear | 22% | -7/Factory Mic. Nuclear Core | 56% | -6/Factory Imp. Cesium-ion Thruster | 15% | -5/Factory Studied --------- Flight Unit | -9/Materials | Hacked Xenon Bombardment Thruster | -7/Factory | Hacked Lgt. Angular Momentum Engine | -6/Factory | Hacked Mic. Fission Core | -5/Factory | Hacked Nuclear Pulse Array | -5/Factory | Hacked Nuclear Pulse Thruster | -5/Factory | Hacked Hyp. Gauss Rifle | -4/Factory | Hacked Mni. Grenade Launcher | -4/Factory | Hacked Alien Tech Used ----------------- None Achievements -------------- Express Service Recruitment Drive That Tickles We Love MA Challenges ------------ None Game ------ Seed CoolantZipMantle Manual? 0 Play Time 07:20:53 Cumulative 208.1 hours Start 2025.11.16 @ 15:24:17 End 2025.11.23 @ 23:02:27 Sessions 31 Manual Loads 0 Difficulty Rogue Special Mode None Game No. 69 Rogue 69 Adventurer 0 Explorer 0 Win Type - Total 1 Types 1/0/0/0/0/0/0/0/0/0 Lore% 51 Gallery% 49 Achievement% 37 Wizard Run 0 Options --------- Layout 0 ASCII 1 Keyboard 1 Movement Arrows Keybinds 0 Fullscreen 1 Font 28/Smallcaps Map View 72x54 Zoom Use 0% Tactical HUD 1 Map Filters NONE Filters NONE Steam 1 RUN: 94094eee-a11a-402c-a54f-2058e61be8be